fUSD/lending_fUSD_20240107
["ID","MTS","AMOUNT","RATE_DAILY","PERIOD"]
[310689565,1704641486394,-300.0,0.00023232,2]
[310689566,1704641486403,-1771.91804243,0.00023233,2]
[310689567,1704641486413,-500.0,0.00023288,4]
[310689568,1704641486422,-500.0,0.00023288,4]
[310689569,1704641486431,-500.0,0.00023288,4]
[310689570,1704641486440,-469.4182745,0.00023288,4]
[310689571,1704641486450,-500.0,0.00023288,4]
[310689572,1704641486459,-500.0,0.00023288,4]
[310689573,1704641486468,-500.0,0.00023288,4]
[310689574,1704641486478,-500.0,0.00023288,4]
[310689575,1704641486487,-500.0,0.00023288,4]
[310689576,1704641486496,-400.43511737,0.00023288,4]
[310689577,1704641486505,-483.72355021,0.00023288,4]
[310689578,1704641486515,-150.13161464,0.00023288,4]
[310689579,1704641486525,-421.63911947,0.00023288,4]
[310689580,1704641486534,-409.75832067,0.00023288,2]
[310689581,1704641486544,-411.37469365,0.00023288,2]
[310689582,1704641486553,-441.21199336,0.00023288,2]
[310689583,1704641486562,-449.95143404,0.00023288,2]
[310689584,1704641486573,-161.95,0.0002331,2]
[310689585,1704641486582,-1293.78,0.00023342,2]
[310689586,1704641486591,-870.67,0.00023349,2]
[310689587,1704641486601,-161.95,0.00023423,2]
[310689588,1704641486610,-1293.78,0.00023455,2]
[310689589,1704641486621,-297.96,0.00023513,2]
[310689590,1704641486630,-161.95,0.00023537,2]
[310689591,1704641486640,-165.3,0.00023539,2]
[310689592,1704641486649,-1293.78,0.00023568,2]
[310689593,1704641486658,-157.28,0.00023633,2]
[310689594,1704641486668,-161.95,0.0002365,2]
[310689595,1704641486677,-1293.78,0.00023682,2]
[310689596,1704641486687,-1716.23840458,0.00023696,2]
[310689597,1704641486697,-159.98,0.00023733,2]
[310689598,1704641486707,-626.74,0.00023978,2]
[310689599,1704641486716,-299.02676355,0.00024,2]
[310689600,1704641486726,-430.5164237,0.00024,2]
[310689601,1704641486735,-201.11715598,0.00024,2]
[310689602,1704641486745,-1504.78,0.00024055,2]
[310689603,1704641486754,-596.55,0.00024068,2]
[310689604,1704641486764,-1771.91804243,0.00024077,2]
[310689605,1704641486774,-812.03,0.00024166,2]
[310689606,1704641486783,-25000.0,0.00024166,2]
[310689607,1704641486793,-167.0,0.00024297,2]
[310689608,1704641486802,-210.0,0.00024377,2]
[310689609,1704641486811,-2208.0,0.000244,2]
[310689610,1704641486821,-870.67,0.00024461,2]
[310689611,1704641486831,-297.96,0.00024582,2]
[310689612,1704641486840,-500.0,0.00024587,2]
[310689613,1704641486849,-23474.0,0.000246,2]
[310689614,1704641486859,-200.0,0.00024658,2]
[310689615,1704641486871,-250.0,0.00024658,2]
[310689616,1704641486880,-1127.999,0.0002489,2]
[310689617,1704641486890,-1962.39,0.0002489,2]
[310689618,1704641486899,-607.847,0.0002489,2]
[310689619,1704641486909,-1022.352,0.0002489,2]
[310689620,1704641486918,-318.0,0.0002489,2]
[310689621,1704641486927,-238.205,0.0002489,2]
[310689622,1704641486936,-576.147,0.0002489,2]
[310689623,1704641486946,-750.0,0.0002489,2]
[310689624,1704641486955,-452.257,0.0002489,2]
[310689625,1704641486965,-1500.0,0.0002489,2]
[310689626,1704641486974,-41900.0,0.0002489,2]
[310689627,1704641486983,-4952.906,0.0002489,2]
[310689628,1704641486993,-2894.0,0.0002489,2]
[310689629,1704641487003,-4388.0,0.0002489,2]
[310689630,1704641487013,-2279.116,0.0002489,2]
[310689631,1704641487022,-19633.0,0.0002489,2]
[310689632,1704641487031,-5652.954,0.0002489,2]
[310689633,1704641487040,-2411.0,0.0002489,2]
[310689634,1704641487049,-1301.0,0.0002489,2]
[310689635,1704641487058,-409.849,0.0002489,2]
[310689636,1704641487068,-1062.714,0.0002489,2]
[310689637,1704641487077,-1846.0,0.0002489,2]
[310689638,1704641487087,-3026.0,0.0002489,2]
[310689639,1704641487096,-833.0,0.0002489,2]
[310689640,1704641487106,-536.533,0.0002489,2]
[310689641,1704641487115,-1771.91804243,0.00024922,2]
[310689642,1704641487125,-1504.78,0.00024931,2]
[310689643,1704641487134,-322.11967009,0.00025,2]
[310689644,1704641487143,-155.0,0.00025,2]
[310689645,1704641487154,-166.9760429,0.00025,2]
[310689646,1704641487164,-200.0,0.00025,2]
[310689647,1704641487173,-302.71173098,0.00025,2]
[310689648,1704641487183,-3034.08810881,0.00025,2]
[310689649,1704641487193,-507.55732129,0.00025,2]
[310689650,1704641487202,-965.97772008,0.00025,2]
[310689651,1704641487211,-1245.75987952,0.00025,2]
[310689652,1704641487220,-695.92602528,0.00025,2]
[310689653,1704641487230,-201.35180856,0.00025,2]
[310689654,1704641487239,-155.0,0.00025,2]
[310689655,1704641487248,-250.0,0.00025,2]
[310689656,1704641487258,-150.0,0.00025,2]
[310689657,1704641487269,-600.0,0.00025,3]
[310689658,1704641487278,-1500.0,0.00025,5]
[310689659,1704641487289,-532.64161305,0.00025,2]
[310689660,1704641487300,-532.64161305,0.00025,2]
[310689661,1704641487310,-350.37,0.00025017,2]
[310689662,1704641487319,-1716.23840458,0.00025027,2]
[310689663,1704641487329,-500.0,0.00025176,2]
[310689664,1704641487339,-500.0,0.00025185,2]
[310689665,1704641487350,-500.0,0.00025194,2]
[310689666,1704641487362,-500.0,0.00025203,2]
[310689667,1704641487372,-500.0,0.00025211,2]
[310689668,1704641487382,-500.0,0.0002522,2]
[310689669,1704641487392,-500.0,0.00025229,2]
[310689670,1704641487402,-500.0,0.00025238,2]
[310689671,1704641487412,-500.0,0.00025247,2]
[310689672,1704641487422,-500.0,0.00025255,2]
[310689673,1704641487433,-500.0,0.00025264,2]
[310689674,1704641487443,-500.0,0.00025273,2]
[310689675,1704641487453,-870.67,0.00025573,2]
[310689676,1704641487463,-192.331524,0.00025604,2]
[310689677,1704641487472,-192.331523,0.00025604,2]
[310689678,1704641487481,-211.945024,0.00025604,2]
[310689679,1704641487490,-155.057426,0.00025604,2]
[310689680,1704641487499,-162.391025,0.00025604,2]
[310689681,1704641487509,-357.938791,0.00025604,2]
[310689682,1704641487518,-1273.223015,0.00025604,2]
[310689683,1704641487528,-155.107839,0.00025604,2]
[310689684,1704641487539,-201.882492,0.00025604,2]
[310689685,1704641487549,-297.96,0.00025651,2]
[310689686,1704641487560,-156.0,0.00025658,2]
[310689687,1704641487569,-158.06,0.00025739,2]
[310689688,1704641487580,-1771.91804243,0.00025767,2]
[310689689,1704641487590,-159.98,0.00025773,2]
[310689690,1704641487600,-500.0,0.00025781,2]
[310689691,1704641487610,-157.28,0.00025782,2]
[310689692,1704641487620,-1504.78,0.00025807,2]
[310689693,1704641487631,-500.0,0.00025817,2]
[310689694,1704641487642,-167.0,0.00025901,2]
[310689695,1704641487651,-357.938791,0.00025924,2]
[310689696,1704641487661,-1273.223015,0.00025924,2]
[310689697,1704641487671,-500.0,0.00026002,2]
[310689698,1704641487681,-155.057426,0.00026031,2]
[310689699,1704641487691,-155.107839,0.00026031,2]
[310689700,1704641487701,-150.0,0.00026079,2]
[310689701,1704641487711,-1000.0,0.00026179,3]
[310689702,1704641487721,-1000.0,0.00026179,3]
[310689703,1704641487731,-500.0,0.00026223,2]
[310689704,1704641487740,-561.46896422,0.00026226,2]
[310689705,1704641487751,-626.74,0.00026241,2]
[310689706,1704641487760,-357.938791,0.00026244,2]
[310689707,1704641487770,-1273.223015,0.00026244,2]
[310689708,1704641487779,-310.0,0.000263,4]
[310689709,1704641487790,-1716.23840458,0.00026357,3]
[310689710,1704641487799,-1000.0,0.00026362,3]
[310689711,1704641487808,-1000.0,0.00026362,3]
[310689712,1704641487817,-1000.0,0.00026362,3]
[310689713,1704641487826,-1000.0,0.00026362,3]
[310689714,1704641487836,-1000.0,0.00026362,3]
[310689715,1704641487845,-1000.0,0.00026362,3]
[310689716,1704641487855,-1000.0,0.00026362,3]
[310689717,1704641487864,-1000.0,0.00026362,3]
[310689718,1704641487875,-1000.0,0.00026362,3]
[310689719,1704641487884,-1549.05001692,0.00026362,2]
[310689720,1704641487894,-279.22895197,0.00026362,2]
[310689721,1704641487903,-1315.53731606,0.00026362,3]
[310689722,1704641487913,-1000.0,0.00026362,3]
[310689723,1704641487922,-844.02891221,0.00026362,2]
[310689724,1704641487931,-1323.8574594,0.00026362,2]
[310689725,1704641487941,-730.03986282,0.00026362,2]
[310689726,1704641487951,-1000.0,0.00026362,3]
[310689727,1704641487961,-7595.07021745,0.00026362,2]
[310689728,1704641487970,-639.67382871,0.00026362,2]
[310689729,1704641487980,-1715.103714,0.00026362,2]
[310689730,1704641487989,-427.92467407,0.00026362,2]
[310689731,1704641487999,-187.62322873,0.00026362,2]
[310689732,1704641488008,-3910.52882799,0.00026362,2]
[310689733,1704641488018,-2463.77015112,0.00026362,3]
[310689734,1704641488027,-1607.70927894,0.00026362,2]
[310689735,1704641488037,-367.51094641,0.00026362,2]
[310689736,1704641488046,-3356.86782648,0.00026362,3]
[310689737,1704641488056,-500.0,0.00026444,2]
[310689738,1704641488065,-155.057426,0.00026457,2]
[310689739,1704641488074,-155.107839,0.00026457,2]
[310689740,1704641488084,-357.938791,0.00026564,2]
[310689741,1704641488093,-1273.223015,0.00026564,2]
[310689742,1704641488103,-1771.91804243,0.00026611,2]
[310689743,1704641488113,-322.27615979,0.00026644,2]
[310689744,1704641488123,-907.0271299,0.00026644,2]
[310689745,1704641488133,-500.0,0.00026665,2]
[310689746,1704641488142,-1504.78,0.00026683,2]
[310689747,1704641488152,-870.67,0.00026685,2]
[310689748,1704641488162,-167.0,0.00026703,2]
[310689749,1704641488172,-812.03,0.00026851,2]
[310689750,1704641488181,-211.945024,0.00026884,2]
[310689751,1704641488191,-155.057426,0.00026884,2]
[310689752,1704641488200,-155.107839,0.00026884,2]
[310689753,1704641488210,-357.938791,0.00026884,2]
[310689754,1704641488220,-1273.223015,0.00026884,2]
[310689755,1704641488230,-500.0,0.00026886,2]
[310689756,1704641488240,-203.0,0.00026919,2]
[310689757,1704641488249,-596.55,0.00026999,2]
[310689758,1704641488259,-596.55,0.00026999,2]
[310689759,1704641488269,-596.55,0.00026999,2]
[310689760,1704641488278,-596.55,0.00026999,2]
[310689761,1704641488288,-596.65,0.00026999,2]
[310689762,1704641488298,-161.98934211,0.00027,2]
[310689763,1704641488307,-4000.0,0.00027,2]
[310689764,1704641488317,-4000.0,0.00027,2]
[310689765,1704641488326,-650.0,0.00027,3]
[310689766,1704641488336,-500.0,0.00027,2]
[310689767,1704641488346,-500.0,0.00027106,2]
[310689768,1704641488355,-500.0,0.00027327,2]
[310689769,1704641488365,-496.05506646,0.0002737,2]
[310689770,1704641488375,-650.0,0.00027397,2]
[310689771,1704641488385,-650.0,0.00027397,2]
[310689772,1704641488394,-650.0,0.00027397,2]
[310689773,1704641488404,-650.0,0.00027397,2]
[310689774,1704641488414,-650.0,0.00027397,2]
[310689775,1704641488423,-479.81018342,0.00027397,2]
[310689776,1704641488433,-500.0,0.00027397,2]
[310689777,1704641488443,-500.0,0.00027397,2]
[310689778,1704641488453,-500.0,0.00027397,2]
[310689779,1704641488463,-500.0,0.00027397,2]
[310689780,1704641488473,-500.0,0.00027397,2]
[310689781,1704641488483,-500.0,0.00027397,2]
[310689782,1704641488492,-500.0,0.00027397,2]
[310689783,1704641488502,-500.0,0.00027397,2]
[310689784,1704641488512,-500.0,0.00027397,2]
[310689785,1704641488522,-500.0,0.00027397,2]
[310689786,1704641488531,-500.0,0.00027397,2]
[310689787,1704641488542,-500.0,0.00027397,2]
[310689788,1704641488552,-500.0,0.00027397,2]
[310689789,1704641488561,-500.0,0.00027397,2]
[310689790,1704641488571,-500.0,0.00027397,2]
[310689791,1704641488581,-500.0,0.00027397,2]
[310689792,1704641488592,-500.0,0.00027397,2]
[310689793,1704641488602,-500.0,0.00027397,2]
[310689794,1704641488613,-500.0,0.00027397,2]
[310689795,1704641488623,-500.0,0.00027397,2]
[310689796,1704641488633,-500.0,0.00027397,2]
[310689797,1704641488643,-500.0,0.00027397,2]
[310689798,1704641488652,-500.0,0.00027397,2]
[310689799,1704641488662,-302.99667138,0.00027397,2]
[310689800,1704641488673,-1000.0,0.00027397,2]
[310689801,1704641488683,-1000.0,0.00027397,2]
[310689802,1704641488693,-1000.0,0.00027397,2]
[310689803,1704641488702,-1000.0,0.00027397,2]
[310689804,1704641488712,-1000.0,0.00027397,2]
[310689805,1704641488722,-1000.0,0.00027397,2]
[310689806,1704641488733,-1120.58493822,0.00027397,2]
[310689807,1704641488743,-3000.0,0.00027397,2]
[310689808,1704641488753,-3000.0,0.00027397,2]
[310689809,1704641488764,-3000.0,0.00027397,2]
[310689810,1704641488773,-3000.0,0.00027397,2]
[310689811,1704641488783,-3000.0,0.00027397,2]
[310689812,1704641488793,-3000.0,0.00027397,2]
[310689813,1704641488804,-3000.0,0.00027397,2]
[310689814,1704641488814,-3000.0,0.00027397,2]
[310689815,1704641488825,-3000.0,0.00027397,2]
[310689816,1704641488836,-3573.5327,0.00027397,2]
[310689817,1704641488845,-2500.0,0.00027397,2]
[310689818,1704641488856,-500.0,0.00027397,2]
[310689819,1704641488867,-517.38231531,0.00027397,2]
[310689820,1704641488880,-155.0,0.00027397,2]
[310689821,1704641488890,-500.0,0.00027397,2]
[310689822,1704641488900,-500.0,0.00027397,2]
[310689823,1704641488910,-500.0,0.00027397,2]
[310689824,1704641488919,-500.0,0.00027397,2]
[310689825,1704641488929,-500.0,0.00027397,2]
[310689826,1704641488938,-500.0,0.00027397,2]
[310689827,1704641488949,-500.0,0.00027397,2]
[310689828,1704641488958,-500.0,0.00027397,2]
[310689829,1704641488968,-500.0,0.00027397,2]
[310689830,1704641488978,-500.0,0.00027397,2]
[310689831,1704641488987,-500.0,0.00027397,2]
[310689832,1704641488997,-203.98321364,0.00027397,2]
[310689833,1704641489007,-4342.0,0.00027397,4]
[310689834,1704641489017,-2130.0,0.00027397,4]
[310689835,1704641489027,-854.83,0.00027397,2]
[310689836,1704641489037,-250.0,0.00027397,2]
[310689837,1704641489046,-500.0,0.00027397,2]
[310689838,1704641489056,-200.0,0.000274,2]
[310689839,1704641489066,-250.0,0.000274,2]
[310689840,1704641489076,-1000.0,0.000274,2]
[310689841,1704641489086,-2000.0,0.000274,2]
[310689842,1704641489096,-376.72697829,0.000274,2]
[310689843,1704641489106,-300.0,0.000274,2]
[310689844,1704641489116,-3000.0,0.000274,2]
[310689845,1704641489127,-500.0,0.000274,2]
[310689846,1704641489137,-1771.91804243,0.00027456,2]
[310689847,1704641489146,-671.79585293,0.000275,4]
[310689848,1704641489156,-167.0,0.00027505,2]
[310689849,1704641489165,-500.0,0.00027548,2]
[310689850,1704641489175,-854.83,0.00027556,2]
[310689851,1704641489185,-1504.78,0.00027559,2]
[310689852,1704641489195,-1716.23840458,0.00027688,3]
[310689853,1704641489206,-854.83,0.00027714,2]
[310689854,1704641489216,-500.0,0.00027769,2]
[310689855,1704641489227,-350.37,0.00027797,2]
[310689856,1704641489237,-854.83,0.00027872,2]
[310689857,1704641489248,-157.28,0.0002793,2]
[310689858,1704641489258,-26798.91,0.00027945,2]
[310689859,1704641489269,-400.0,0.0002797,2]
[310689860,1704641489279,-400.0,0.0002797,2]
[310689861,1704641489290,-400.0,0.0002797,2]
[310689862,1704641489301,-500.0,0.0002799,2]
[310689863,1704641489311,-687.02354933,0.00028,2]
[310689864,1704641489320,-202.53914952,0.00028,2]
[310689865,1704641489330,-3000.0,0.00028,2]
[310689866,1704641489340,-520.387649,0.00028,2]
[310689867,1704641489350,-5000.0,0.00028,2]
[310689868,1704641489361,-1000.0,0.00028,2]
[310689869,1704641489371,-373.60974,0.00028,2]
[310689870,1704641489384,-854.83,0.0002803,2]
[310689871,1704641489395,-200.0,0.00028067,3]
[310689872,1704641489405,-800.0,0.00028067,5]
[310689873,1704641489416,-5000.0,0.00028088,2]
[310689874,1704641489426,-5000.0,0.00028175,2]
[310689875,1704641489436,-854.83,0.00028189,2]
[310689876,1704641489446,-500.0,0.00028211,2]
[310689877,1704641489456,-5000.0,0.00028263,2]
[310689878,1704641489466,-1771.91804243,0.000283,2]
[310689879,1704641489475,-167.0,0.00028307,2]
[310689880,1704641489485,-167.0,0.00028307,2]
[310689881,1704641489496,-854.83,0.00028347,2]
[310689882,1704641489506,-5000.0,0.0002835,2]
[310689883,1704641489515,-500.0,0.00028432,2]
[310689884,1704641489526,-1504.78,0.00028434,2]
[310689885,1704641489536,-5000.0,0.00028437,2]
[310689886,1704641489547,-203.0,0.00028494,4]
[310689887,1704641489557,-626.74,0.00028505,2]
[310689888,1704641489567,-854.83,0.00028505,2]
[310689889,1704641489577,-5000.0,0.00028525,2]
[310689890,1704641489587,-5000.0,0.00028613,2]
[310689891,1704641489598,-500.0,0.00028653,2]
[310689892,1704641489609,-854.83,0.00028664,2]
[310689893,1704641489619,-5000.0,0.000287,2]
[310689894,1704641489629,-155.0,0.00028767,2]
[310689895,1704641489640,-5000.0,0.00028788,2]
[310689896,1704641489650,-854.83,0.00028822,2]
[310689897,1704641489860,-500.0,0.00028874,2]
[310689898,1704641489880,-5000.0,0.00028875,2]
[310689899,1704641489889,-5000.0,0.00028962,2]
[310689900,1704641489898,-986.31174573,0.0002899,3]
[310689901,1704641489908,-21299.54879567,0.00029,2]
[310689902,1704641489918,-2000.0,0.00029,2]
[310689903,1704641489928,-114550.03247777,0.00029,2]
[310689904,1704641489936,-700.0,0.00029,3]
[310689905,1704641489946,-3000.0,0.00029,2]
[310689906,1704641489955,-1000.0,0.00029,2]
[310689907,1704641489965,-1716.23840458,0.00029018,4]
[310689908,1704641489974,-5000.0,0.0002905,2]
[310689909,1704641489983,-500.0,0.00029095,2]
[310689910,1704641489993,-5000.0,0.00029137,2]
[310689911,1704641490002,-1771.91804243,0.00029145,2]
[310689912,1704641490011,-256.0,0.000292,5]
[310689913,1704641490021,-5000.0,0.00029225,2]
[310689914,1704641490030,-5000.0,0.00029313,2]
[310689915,1704641490039,-500.0,0.00029316,2]
[310689916,1704641490049,-5000.0,0.000294,2]
[310689917,1704641490058,-5000.0,0.00029488,2]
[310689918,1704641490067,-1050.77679524,0.00029498,2]
[310689919,1704641490076,-812.03,0.00029536,2]
[310689920,1704641490086,-500.0,0.00029537,2]
[310689921,1704641490095,-5000.0,0.00029575,2]
[310689922,1704641490105,-5000.0,0.00029662,2]
[310689923,1704641490114,-5000.0,0.0002975,2]
[310689924,1704641490124,-500.0,0.00029758,2]
[310689925,1704641490133,-267.89545454,0.00029799,2]
[310689926,1704641490142,-195.49419204,0.000298,2]
[310689927,1704641490152,-6175.05371919,0.000298,2]
[310689928,1704641490161,-5000.0,0.00029838,2]
[310689929,1704641490170,-1000.0,0.0002989,2]
[310689930,1704641490180,-1152.38094598,0.000299,2]
[310689931,1704641490189,-5000.0,0.00029925,2]
[310689932,1704641490202,-500.0,0.00029972,2]
[310689933,1704641490211,-500.0,0.00029972,2]
[310689934,1704641490221,-500.0,0.00029972,2]
[310689935,1704641490231,-500.0,0.00029972,2]
[310689936,1704641490242,-500.0,0.00029972,2]
[310689937,1704641490253,-500.0,0.00029972,2]
[310689938,1704641490265,-500.0,0.00029972,2]
[310689939,1704641490275,-500.0,0.00029972,2]
[310689940,1704641490285,-500.0,0.00029972,2]
[310689941,1704641490294,-500.0,0.00029972,2]
[310689942,1704641490303,-500.0,0.00029972,2]
[310689943,1704641490313,-500.0,0.00029972,2]
[310689944,1704641490323,-500.0,0.00029979,2]
[310689945,1704641490332,-2303.41975283,0.0002998,7]
[310689946,1704641490342,-1771.91804243,0.0002999,2]
[310689947,1704641490351,-2732.34274577,0.0003,2]
[310689948,1704641490360,-44376.63371704,0.0003,4]
[310689949,1704641490370,-8806.28564995,0.0003,4]
[310689950,1704641490380,-159.77229605,0.0003,4]
[310689951,1704641490390,-581.07450079,0.0003,2]
[310689952,1704641490400,-316.70892933,0.0003,4]
[310689953,1704641490411,-689.29232079,0.0003,2]
[310689954,1704641490420,-448.29033348,0.0003,4]
[310689955,1704641490429,-308057.51614315,0.0003,4]
[310689956,1704641490440,-155.0,0.0003,2]
[310689957,1704641490450,-530.21758314,0.0003,4]
[310689958,1704641490459,-2575.58389964,0.0003,4]
[310689959,1704641490469,-18014.2979714,0.0003,4]
[310689960,1704641490478,-160.7375581,0.0003,4]
[310689961,1704641490488,-2500.0,0.0003,2]
[310689962,1704641490498,-809.440986,0.0003,4]
[310689963,1704641490508,-461.40392013,0.0003,4]
[310689964,1704641490518,-155.0,0.0003,4]
[310689965,1704641490528,-15579.0765494,0.0003,2]
[310689966,1704641490537,-155.76331098,0.0003,4]
[310689967,1704641490546,-3412.3377975,0.0003,3]
[310689968,1704641490556,-413.43001973,0.0003,7]
[310689969,1704641490565,-90000.0,0.0003,2]
[310689970,1704641490575,-25910.71038106,0.0003,4]
[310689971,1704641490584,-271580.99296883,0.0003,2]
[310689972,1704641490594,-589.07689582,0.0003,2]
[310689973,1704641490603,-5677.696877,0.0003,2]
[310689974,1704641490613,-157.59,0.0003,2]
[310689975,1704641490623,-157.59,0.0003,2]
[310689976,1704641490632,-200.0,0.0003,2]
[310689977,1704641490642,-300.0,0.0003,2]
[310689978,1704641490652,-3000.0,0.0003,2]
[310689979,1704641490662,-3000.0,0.0003,2]
[310689980,1704641490671,-3000.0,0.0003,2]
[310689981,1704641490681,-3000.0,0.0003,2]
[310689982,1704641490690,-3000.0,0.0003,2]
[310689983,1704641490700,-3000.0,0.0003,2]
[310689984,1704641490709,-5149.0,0.0003,3]
[310689985,1704641490719,-1000.0,0.0003,2]
[310689986,1704641490728,-5000.0,0.00030013,2]
[310689987,1704641490739,-203.0,0.0003007,7]
[310689988,1704641490748,-157.28,0.00030079,2]
[310689989,1704641490758,-400.0,0.000301,2]
[310689990,1704641490767,-5000.0,0.000301,2]
[310689991,1704641490776,-1020.89123595,0.00030136,30]
[310689992,1704641490786,-10000.0,0.00030137,2]
[310689993,1704641490795,-153.84,0.00030137,2]
[310689994,1704641490805,-155.0,0.00030137,2]
[310689995,1704641490815,-5000.0,0.00030188,2]
[310689996,1704641490825,-500.0,0.000302,2]
[310689997,1704641490834,-5000.0,0.00030275,2]
[310689998,1704641490844,-1716.23840458,0.00030349,5]
[310689999,1704641490854,-5000.0,0.00030362,2]
[310690000,1704641490863,-500.0,0.00030421,2]
[310690001,1704641490877,-1000.0,0.00030438,10]
[310690002,1704641490887,-5000.0,0.0003045,2]
[310690003,1704641490897,-5000.0,0.00030538,2]
[310690004,1704641490909,-350.37,0.00030576,2]
[310690005,1704641490918,-5000.0,0.00030625,2]
[310690006,1704641490928,-500.0,0.00030642,2]
[310690007,1704641490938,-5000.0,0.00030713,2]
[310690008,1704641490951,-626.74,0.00030769,2]
[310690009,1704641490962,-150.0,0.00030799,2]
[310690010,1704641490971,-5000.0,0.000308,2]
[310690011,1704641490981,-1771.91804243,0.00030834,2]
[310690012,1704641490991,-500.0,0.00030863,2]
[310690013,1704641491000,-400.0,0.0003087,2]
[310690014,1704641491010,-5000.0,0.00030888,2]
[310690015,1704641491019,-198.79967108,0.000309,2]
[310690016,1704641491029,-322.27615979,0.000309,2]
[310690017,1704641491038,-907.0271299,0.000309,2]
[310690018,1704641491048,-703454.55716967,0.000309,2]
[310690019,1704641491057,-57655.45133596,0.00030908,3]
[310690020,1704641491066,-1000.0,0.00030909,2]
[310690021,1704641491076,-5000.0,0.00030975,2]
[310690022,1704641491085,-1000.0,0.00030986,10]
[310690023,1704641491095,-2500.0,0.00031,5]
[310690024,1704641491104,-83019.52364121,0.00031,7]
[310690025,1704641491114,-1215591.52450427,0.00031,3]
[310690026,1704641491123,-1000.0,0.00031,10]
[310690027,1704641491139,-750.0,0.00031,3]
[310690028,1704641491151,-300.0,0.00031,3]
[310690029,1704641491161,-115377.34455527,0.0003104,2]
[310690030,1704641491171,-153.84,0.0003105,2]
[310690031,1704641491181,-58000.0,0.00031053,3]
[310690032,1704641491191,-5000.0,0.00031063,2]
[310690033,1704641491200,-500.0,0.00031084,2]
[310690034,1704641491209,-5000.0,0.0003115,2]
[310690035,1704641491218,-5000.0,0.00031238,2]
[310690036,1704641491229,-500.0,0.00031304,2]
[310690037,1704641491245,-5000.0,0.00031325,2]
[310690038,1704641491257,-459.65462505,0.000314,30]
[310690039,1704641491266,-5000.0,0.00031413,2]
[310690040,1704641491275,-8463.96793773,0.0003143,4]
[310690041,1704641491285,-4894.00469179,0.00031481,2]
[310690042,1704641491294,-9659.12582985,0.00031481,2]
[310690043,1704641491303,-16113.36509619,0.00031481,2]
[310690044,1704641491312,-5000.0,0.000315,2]
[310690045,1704641491322,-500.0,0.000315,2]
[310690046,1704641491331,-155.0,0.00031507,2]
[310690047,1704641491341,-500.0,0.00031525,2]
[310690048,1704641491350,-1000.0,0.00031534,10]
[310690049,1704641491359,-211.0,0.0003158,2]
[310690050,1704641491368,-5000.0,0.00031587,2]
[310690051,1704641491379,-203.0,0.00031645,10]
[310690052,1704641491389,-5000.0,0.00031675,2]
[310690053,1704641491399,-1771.91804243,0.00031679,3]
[310690054,1704641491408,-1716.23840458,0.00031679,5]
[310690055,1704641491418,-193.42745157,0.00031693,7]
[310690056,1704641491427,-51261.95639544,0.00031693,7]
[310690057,1704641491437,-17031.61599932,0.00031693,7]
[310690058,1704641491447,-6367.67011106,0.00031693,7]
[310690059,1704641491456,-25077.90968491,0.00031693,7]
[310690060,1704641491466,-157.59,0.000317,2]
[310690061,1704641491475,-157.59,0.000317,2]
[310690062,1704641491485,-157.59,0.000317,2]
[310690063,1704641491494,-157.59,0.000317,2]
[310690064,1704641491504,-500.0,0.00031746,2]